[Event "Titled Tuesday Blitz February 14 Late 2023"]
[White "Mazurkiewicz, Michal"]
[Black "Georg, Heinz"]
[WhiteFideId "1124943"]
[BlackFideId "4607295"]
[WhiteElo "2145"]
[BlackElo "2107"]
[Result "1-0"]
[Round "08"]
[TimeControl "180+2"]
[Date "2023.02.14"]
[WhiteClock "0:00:25"]
[BlackClock "0:00:04"]

1. e4 {[%clk 0:02:59]}  e5 {[%clk 0:02:59]} 2. Nf3 {[%clk 0:02:59]}  Nc6 {[%clk 0:03:00]} 3. d3 {[%clk 0:03:00]}  Nf6 {[%clk 0:02:58]} 4. g3 {[%clk 0:03:00]}  d5 {[%clk 0:02:58]} 5. exd5 {[%clk 0:03:01]}  Nxd5 {[%clk 0:02:58]} 6. Bg2 {[%clk 0:03:00]}  Be7 {[%clk 0:02:59]} 7. O-O {[%clk 0:03:00]}  Be6 {[%clk 0:02:59]} 8. Re1 {[%clk 0:02:59]}  Bf6 {[%clk 0:02:53]} 9. Nbd2 {[%clk 0:02:59]}  O-O {[%clk 0:02:50]} 10. Nc4 {[%clk 0:02:59]}  Bg4 {[%clk 0:02:48]} 11. h3 {[%clk 0:03:00]}  Bxf3 {[%clk 0:02:47]} 12. Qxf3 {[%clk 0:03:01]}  Ndb4 {[%clk 0:02:39]} 13. Qd1 {[%clk 0:02:54]}  Re8 {[%clk 0:02:34]} 14. a3 {[%clk 0:02:51]}  Nd5 {[%clk 0:02:30]} 15. c3 {[%clk 0:02:51]}  g6 {[%clk 0:02:22]} 16. Qb3 {[%clk 0:02:50]}  Nb6 {[%clk 0:02:19]} 17. Be3 {[%clk 0:02:44]}  Qxd3 {[%clk 0:02:14]} 18. Nxb6 {[%clk 0:02:40]}  axb6 {[%clk 0:02:13]} 19. Rad1 {[%clk 0:02:41]}  Qf5 {[%clk 0:02:07]} 20. g4 {[%clk 0:02:19]}  Qe6 {[%clk 0:02:06]} 21. Bd5 {[%clk 0:02:19]}  Qe7 {[%clk 0:02:06]} 22. Rd2 {[%clk 0:01:51]}  Na5 {[%clk 0:01:50]} 23. Qa2 {[%clk 0:01:46]}  c6 {[%clk 0:01:48]} 24. Be4 {[%clk 0:01:46]}  b5 {[%clk 0:01:43]} 25. Red1 {[%clk 0:01:22]}  Rad8 {[%clk 0:01:27]} 26. b4 {[%clk 0:00:50]}  Rxd2 {[%clk 0:01:17]} 27. Rxd2 {[%clk 0:00:39]}  Nc4 {[%clk 0:01:17]} 28. Bc5 {[%clk 0:00:39]}  Qe6 {[%clk 0:01:09]} 29. Rd3 {[%clk 0:00:38]}  Rd8 {[%clk 0:00:48]} 30. a4 {[%clk 0:00:36]}  Rxd3 {[%clk 0:00:30]} 31. Bxd3 {[%clk 0:00:37]}  e4 {[%clk 0:00:30]} 32. axb5 {[%clk 0:00:27]}  cxb5 {[%clk 0:00:06]} 33. Qa8+ {[%clk 0:00:26]}  Kg7 {[%clk 0:00:04]} 34. Qf8# {[%clk 0:00:25]} 1-0


[Site "https://www.chess.com"]

[Event "Titled Tuesday Blitz February 14 Late 2023"]
[White "Cueto, Jonny"]
[Black "Rian, Kapriaga"]
[WhiteFideId "3300145"]
[BlackFideId "7103263"]
[WhiteElo "2122"]
[BlackElo "2089"]
[Result "0-1"]
[Round "08"]
[TimeControl "180+2"]
[Date "2023.02.14"]
[WhiteClock "0:00:01"]
[BlackClock "0:00:25"]

1. d4 {[%clk 0:02:10]}  Nf6 {[%clk 0:02:52]} 2. Bf4 {[%clk 0:02:08]}  d5 {[%clk 0:02:51]} 3. e3 {[%clk 0:02:08]}  e6 {[%clk 0:02:51]} 4. Nf3 {[%clk 0:02:07]}  Bd6 {[%clk 0:02:51]} 5. Ne5 {[%clk 0:02:08]}  O-O {[%clk 0:02:50]} 6. Nd2 {[%clk 0:02:07]}  Nfd7 {[%clk 0:02:23]} 7. Bd3 {[%clk 0:01:59]}  f6 {[%clk 0:02:21]} 8. Bxh7+ {[%clk 0:01:49]}  Kxh7 {[%clk 0:02:20]} 9. Qh5+ {[%clk 0:01:49]}  Kg8 {[%clk 0:02:20]} 10. Ng6 {[%clk 0:01:50]}  Bxf4 {[%clk 0:02:02]} 11. exf4 {[%clk 0:01:47]}  Nc6 {[%clk 0:01:47]} 12. O-O {[%clk 0:01:22]}  Ne7 {[%clk 0:01:43]} 13. Nxf8 {[%clk 0:01:00]}  Nxf8 {[%clk 0:01:34]} 14. Rfe1 {[%clk 0:00:59]}  Bd7 {[%clk 0:01:26]} 15. Re3 {[%clk 0:00:58]}  Be8 {[%clk 0:01:24]} 16. Qg4 {[%clk 0:00:55]}  Bg6 {[%clk 0:01:23]} 17. h4 {[%clk 0:00:55]}  Bf5 {[%clk 0:01:22]} 18. Qf3 {[%clk 0:00:51]}  Qd6 {[%clk 0:01:18]} 19. g4 {[%clk 0:00:50]}  Bxc2 {[%clk 0:01:18]} 20. g5 {[%clk 0:00:36]}  fxg5 {[%clk 0:01:15]} 21. hxg5 {[%clk 0:00:37]}  Nf5 {[%clk 0:01:13]} 22. Rc3 {[%clk 0:00:19]}  Nxd4 {[%clk 0:00:54]} 23. Qh5 {[%clk 0:00:19]}  Bg6 {[%clk 0:00:50]} 24. Qh4 {[%clk 0:00:18]}  Ne2+ {[%clk 0:00:48]} 25. Kf1 {[%clk 0:00:17]}  Nxc3 {[%clk 0:00:43]} 26. bxc3 {[%clk 0:00:17]}  e5 {[%clk 0:00:43]} 27. Nf3 {[%clk 0:00:12]}  exf4 {[%clk 0:00:39]} 28. Nd4 {[%clk 0:00:07]}  Ne6 {[%clk 0:00:38]} 29. Nb5 {[%clk 0:00:06]}  Qa6 {[%clk 0:00:37]} 30. Kg2 {[%clk 0:00:06]}  Qxb5 {[%clk 0:00:37]} 31. Rh1 {[%clk 0:00:06]}  Qd3 {[%clk 0:00:34]} 32. Qh8+ {[%clk 0:00:06]}  Kf7 {[%clk 0:00:34]} 33. Qxa8 {[%clk 0:00:06]}  Be4+ {[%clk 0:00:33]} 34. Kh2 {[%clk 0:00:03]}  Bxh1 {[%clk 0:00:33]} 35. Qc8 {[%clk 0:00:02]}  Qe4 {[%clk 0:00:30]} 36. Qd7+ {[%clk 0:00:02]}  Kg6 {[%clk 0:00:30]} 37. Qe8+ {[%clk 0:00:03]}  Kxg5 {[%clk 0:00:28]} 38. Qe7+ {[%clk 0:00:03]}  Kg6 {[%clk 0:00:27]} 39. Qe8+ {[%clk 0:00:03]}  Kf6 {[%clk 0:00:26]} 40. Qf8+ {[%clk 0:00:03]}  Ke5 {[%clk 0:00:26]} 41. Qg8 {[%clk 0:00:01]}  Qg2# {[%clk 0:00:25]} 0-1


[Site "https://www.chess.com"]

[Event "Titled Tuesday Blitz February 14 Late 2023"]
[White "Sariego Figueredo, Wilfredo"]
[Black "Figorito, Nick"]
[WhiteFideId "3500080"]
[BlackFideId "30923689"]
[WhiteElo "2318"]
[BlackElo "2036"]
[Result "0-1"]
[Round "08"]
[TimeControl "180+2"]
[Date "2023.02.14"]
[WhiteClock "0:00:12"]
[BlackClock "0:00:35"]

1. d4 {[%clk 0:02:59]}  Nf6 {[%clk 0:02:59]} 2. Bf4 {[%clk 0:02:59]}  g6 {[%clk 0:02:59]} 3. e3 {[%clk 0:02:59]}  Bg7 {[%clk 0:03:00]} 4. Be2 {[%clk 0:03:00]}  h5 {[%clk 0:02:58]} 5. Nf3 {[%clk 0:03:00]}  d5 {[%clk 0:02:59]} 6. c3 {[%clk 0:03:00]}  Nc6 {[%clk 0:02:59]} 7. Nbd2 {[%clk 0:03:00]}  Bg4 {[%clk 0:02:59]} 8. h3 {[%clk 0:02:58]}  Bf5 {[%clk 0:02:58]} 9. O-O {[%clk 0:02:54]}  O-O {[%clk 0:02:53]} 10. Re1 {[%clk 0:02:51]}  Ne4 {[%clk 0:02:52]} 11. Nxe4 {[%clk 0:02:39]}  Bxe4 {[%clk 0:02:52]} 12. Bd3 {[%clk 0:02:39]}  Bxd3 {[%clk 0:02:48]} 13. Qxd3 {[%clk 0:02:37]}  e6 {[%clk 0:02:48]} 14. e4 {[%clk 0:02:32]}  dxe4 {[%clk 0:02:46]} 15. Qxe4 {[%clk 0:02:31]}  Qd5 {[%clk 0:02:45]} 16. Qxd5 {[%clk 0:02:29]}  exd5 {[%clk 0:02:45]} 17. Bxc7 {[%clk 0:02:29]}  Rac8 {[%clk 0:02:39]} 18. Bd6 {[%clk 0:02:27]}  Rfd8 {[%clk 0:02:38]} 19. Bf4 {[%clk 0:02:20]}  b5 {[%clk 0:02:35]} 20. Ne5 {[%clk 0:02:14]}  a5 {[%clk 0:02:19]} 21. Nxc6 {[%clk 0:02:08]}  Rxc6 {[%clk 0:02:20]} 22. Re7 {[%clk 0:02:06]}  b4 {[%clk 0:02:13]} 23. Bd2 {[%clk 0:01:55]}  a4 {[%clk 0:01:56]} 24. Rae1 {[%clk 0:01:50]}  a3 {[%clk 0:01:54]} 25. bxa3 {[%clk 0:01:47]}  bxc3 {[%clk 0:01:53]} 26. Bc1 {[%clk 0:01:41]}  Bxd4 {[%clk 0:01:49]} 27. Kf1 {[%clk 0:01:27]}  Rcc8 {[%clk 0:01:26]} 28. R1e2 {[%clk 0:00:42]}  Bf6 {[%clk 0:01:24]} 29. R7e3 {[%clk 0:00:35]}  d4 {[%clk 0:01:23]} 30. Rd3 {[%clk 0:00:34]}  Rb8 {[%clk 0:01:17]} 31. Rc2 {[%clk 0:00:32]}  Rb1 {[%clk 0:01:10]} 32. f4 {[%clk 0:00:28]}  Rdb8 {[%clk 0:01:03]} 33. Ke2 {[%clk 0:00:20]}  Ra1 {[%clk 0:00:58]} 34. g4 {[%clk 0:00:17]}  Rbb1 {[%clk 0:00:55]} 35. Rd1 {[%clk 0:00:14]}  hxg4 {[%clk 0:00:49]} 36. hxg4 {[%clk 0:00:14]}  Rb8 {[%clk 0:00:38]} 37. g5 {[%clk 0:00:13]}  Re8+ {[%clk 0:00:37]} 38. Kd3 {[%clk 0:00:12]}  Bg7 {[%clk 0:00:35]} 0-1


[Site "https://www.chess.com"]

[Event "Titled Tuesday Blitz February 14 Late 2023"]
[White "Curtis, John"]
[Black "Prieto Aranguren, Alain"]
[WhiteFideId "3200256"]
[BlackFideId "2268906"]
[WhiteElo "2292"]
[BlackElo "2258"]
[Result "0-1"]
[Round "08"]
[TimeControl "180+2"]
[Date "2023.02.14"]
[WhiteClock "0:00:12"]
[BlackClock "0:00:56"]

1. d4 {[%clk 0:02:46]}  g6 {[%clk 0:02:52]} 2. e4 {[%clk 0:02:44]}  Bg7 {[%clk 0:02:52]} 3. Nf3 {[%clk 0:02:44]}  c6 {[%clk 0:02:53]} 4. h3 {[%clk 0:02:38]}  d5 {[%clk 0:02:52]} 5. Nc3 {[%clk 0:02:34]}  Be6 {[%clk 0:02:51]} 6. exd5 {[%clk 0:02:32]}  cxd5 {[%clk 0:02:51]} 7. Bb5+ {[%clk 0:02:29]}  Nc6 {[%clk 0:02:50]} 8. O-O {[%clk 0:02:29]}  Nf6 {[%clk 0:02:49]} 9. Ne5 {[%clk 0:02:28]}  Rc8 {[%clk 0:02:47]} 10. Na4 {[%clk 0:02:24]}  O-O {[%clk 0:02:45]} 11. Bxc6 {[%clk 0:02:18]}  bxc6 {[%clk 0:02:45]} 12. Nc5 {[%clk 0:02:19]}  Nd7 {[%clk 0:02:41]} 13. Nxe6 {[%clk 0:02:17]}  fxe6 {[%clk 0:02:41]} 14. Nxd7 {[%clk 0:02:12]}  Qxd7 {[%clk 0:02:40]} 15. Re1 {[%clk 0:02:10]}  Rf5 {[%clk 0:02:35]} 16. c3 {[%clk 0:02:03]}  Rcf8 {[%clk 0:02:34]} 17. f4 {[%clk 0:01:55]}  g5 {[%clk 0:02:30]} 18. Qe2 {[%clk 0:01:51]}  gxf4 {[%clk 0:02:29]} 19. Qxe6+ {[%clk 0:01:49]}  Qxe6 {[%clk 0:02:29]} 20. Rxe6 {[%clk 0:01:48]}  f3 {[%clk 0:02:24]} 21. gxf3 {[%clk 0:01:42]}  Rxf3 {[%clk 0:02:23]} 22. Bh6 {[%clk 0:01:24]}  R8f7 {[%clk 0:01:27]} 23. Rae1 {[%clk 0:00:54]}  Bxh6 {[%clk 0:01:25]} 24. Rxh6 {[%clk 0:00:52]}  Rg7+ {[%clk 0:01:26]} 25. Kh2 {[%clk 0:00:48]}  Rf2+ {[%clk 0:01:25]} 26. Kh1 {[%clk 0:00:48]}  Rxb2 {[%clk 0:01:21]} 27. Rxc6 {[%clk 0:00:46]}  Rxa2 {[%clk 0:01:16]} 28. Rf1 {[%clk 0:00:42]}  Rgg2 {[%clk 0:01:05]} 29. Rg1 {[%clk 0:00:32]}  Rxg1+ {[%clk 0:01:05]} 30. Kxg1 {[%clk 0:00:32]}  a5 {[%clk 0:01:04]} 31. Rc5 {[%clk 0:00:22]}  e6 {[%clk 0:01:02]} 32. Rc7 {[%clk 0:00:22]}  a4 {[%clk 0:01:02]} 33. h4 {[%clk 0:00:19]}  a3 {[%clk 0:00:59]} 34. Ra7 {[%clk 0:00:18]}  Kf8 {[%clk 0:00:59]} 35. Rxh7 {[%clk 0:00:15]}  Rb2 {[%clk 0:00:57]} 36. Ra7 {[%clk 0:00:14]}  a2 {[%clk 0:00:57]} 37. h5 {[%clk 0:00:13]}  Rb1+ {[%clk 0:00:56]} 38. Kg2 {[%clk 0:00:12]}  a1=Q {[%clk 0:00:56]} 0-1


[Site "https://www.chess.com"]

[Event "Titled Tuesday Blitz February 14 Late 2023"]
[White "Toktomushev, Teimur"]
[Black "Levine, David"]
[WhiteFideId "14176726"]
[BlackFideId "2011611"]
[WhiteElo "2239"]
[BlackElo "2040"]
[Result "1-0"]
[Round "08"]
[TimeControl "180+2"]
[Date "2023.02.14"]
[WhiteClock "0:00:31"]
[BlackClock "0:00:05"]

1. d4 {[%clk 0:02:59]}  d5 {[%clk 0:02:59]} 2. c4 {[%clk 0:02:56]}  dxc4 {[%clk 0:02:59]} 3. e3 {[%clk 0:02:55]}  Nf6 {[%clk 0:02:58]} 4. Bxc4 {[%clk 0:02:55]}  e6 {[%clk 0:02:53]} 5. Nf3 {[%clk 0:02:54]}  c5 {[%clk 0:02:53]} 6. O-O {[%clk 0:02:54]}  Nc6 {[%clk 0:02:52]} 7. Nc3 {[%clk 0:02:52]}  cxd4 {[%clk 0:02:51]} 8. exd4 {[%clk 0:02:52]}  Be7 {[%clk 0:02:52]} 9. d5 {[%clk 0:02:49]}  exd5 {[%clk 0:02:49]} 10. Nxd5 {[%clk 0:02:50]}  Nxd5 {[%clk 0:02:46]} 11. Qxd5 {[%clk 0:02:51]}  O-O {[%clk 0:02:41]} 12. Bg5 {[%clk 0:02:36]}  Qxd5 {[%clk 0:02:30]} 13. Bxd5 {[%clk 0:02:37]}  Bxg5 {[%clk 0:02:23]} 14. Nxg5 {[%clk 0:02:38]}  Nb4 {[%clk 0:02:23]} 15. Bb3 {[%clk 0:02:11]}  h6 {[%clk 0:02:09]} 16. Ne4 {[%clk 0:02:09]}  Bf5 {[%clk 0:02:04]} 17. Nd6 {[%clk 0:02:08]}  Bd3 {[%clk 0:01:52]} 18. Rfe1 {[%clk 0:02:07]}  Nc2 {[%clk 0:01:47]} 19. Bxc2 {[%clk 0:02:04]}  Bxc2 {[%clk 0:01:47]} 20. Rac1 {[%clk 0:02:02]}  Bd3 {[%clk 0:01:41]} 21. Nxb7 {[%clk 0:02:01]}  Rab8 {[%clk 0:01:33]} 22. Rc7 {[%clk 0:01:55]}  Rfe8 {[%clk 0:01:32]} 23. Rxe8+ {[%clk 0:01:53]}  Rxe8 {[%clk 0:01:32]} 24. h3 {[%clk 0:01:47]}  Re1+ {[%clk 0:01:28]} 25. Kh2 {[%clk 0:01:47]}  Re2 {[%clk 0:01:28]} 26. Nc5 {[%clk 0:01:46]}  Bc4 {[%clk 0:01:17]} 27. b3 {[%clk 0:01:46]}  Bd5 {[%clk 0:01:16]} 28. Rd7 {[%clk 0:01:23]}  Bc6 {[%clk 0:01:12]} 29. Rd6 {[%clk 0:01:23]}  Be8 {[%clk 0:00:33]} 30. Rd8 {[%clk 0:01:22]}  Kf8 {[%clk 0:00:33]} 31. a4 {[%clk 0:01:17]}  Rxf2 {[%clk 0:00:31]} 32. Ra8 {[%clk 0:01:08]}  a5 {[%clk 0:00:27]} 33. Nb7 {[%clk 0:00:47]}  Ke7 {[%clk 0:00:26]} 34. Nxa5 {[%clk 0:00:47]}  g5 {[%clk 0:00:16]} 35. Ra7+ {[%clk 0:00:38]}  Ke6 {[%clk 0:00:11]} 36. Nc4 {[%clk 0:00:32]}  Bc6 {[%clk 0:00:09]} 37. Ra6 {[%clk 0:00:32]}  Kd7 {[%clk 0:00:05]} 38. Ne5+ {[%clk 0:00:31]} 1-0


[Site "https://www.chess.com"]

[Event "Titled Tuesday Blitz February 14 Late 2023"]
[White "Chabris, Christopher"]
[Black "Balog, Imre"]
[WhiteFideId "2005263"]
[BlackFideId "728446"]
[WhiteElo "2053"]
[BlackElo "2615"]
[Result "0-1"]
[Round "08"]
[TimeControl "180+2"]
[Date "2023.02.14"]
[WhiteClock "0:00:20"]
[BlackClock "0:00:34"]

1. e4 {[%clk 0:02:59]}  c5 {[%clk 0:02:59]} 2. Nf3 {[%clk 0:02:59]}  Nc6 {[%clk 0:02:59]} 3. Bb5 {[%clk 0:02:59]}  e6 {[%clk 0:02:59]} 4. Bxc6 {[%clk 0:02:59]}  bxc6 {[%clk 0:03:00]} 5. d3 {[%clk 0:02:59]}  Ne7 {[%clk 0:03:00]} 6. h4 {[%clk 0:02:59]}  h5 {[%clk 0:02:52]} 7. Nbd2 {[%clk 0:02:58]}  d5 {[%clk 0:02:51]} 8. e5 {[%clk 0:02:56]}  Ng6 {[%clk 0:02:51]} 9. c4 {[%clk 0:02:52]}  Be7 {[%clk 0:02:50]} 10. g3 {[%clk 0:02:43]}  f6 {[%clk 0:02:27]} 11. exf6 {[%clk 0:02:25]}  Bxf6 {[%clk 0:02:27]} 12. Nb3 {[%clk 0:02:20]}  dxc4 {[%clk 0:02:02]} 13. dxc4 {[%clk 0:02:14]}  Qxd1+ {[%clk 0:02:01]} 14. Kxd1 {[%clk 0:02:14]}  Ba6 {[%clk 0:01:59]} 15. Nxc5 {[%clk 0:02:09]}  Bxc4 {[%clk 0:01:57]} 16. Kc2 {[%clk 0:01:51]}  Bd5 {[%clk 0:01:55]} 17. Re1 {[%clk 0:01:41]}  Bxf3 {[%clk 0:01:52]} 18. Nxe6 {[%clk 0:01:39]}  Kf7 {[%clk 0:01:46]} 19. Bg5 {[%clk 0:01:31]}  Bd5 {[%clk 0:01:43]} 20. Nc7 {[%clk 0:01:19]}  Rac8 {[%clk 0:01:38]} 21. Nxd5 {[%clk 0:01:01]}  cxd5+ {[%clk 0:01:37]} 22. Kd3 {[%clk 0:00:58]}  Bxb2 {[%clk 0:01:26]} 23. Rab1 {[%clk 0:00:56]}  Ne5+ {[%clk 0:01:18]} 24. Ke3 {[%clk 0:00:52]}  Nc4+ {[%clk 0:01:08]} 25. Kf3 {[%clk 0:00:47]}  Bf6 {[%clk 0:01:00]} 26. Rb7+ {[%clk 0:00:46]}  Kg6 {[%clk 0:00:57]} 27. Bxf6 {[%clk 0:00:37]}  Rhf8 {[%clk 0:00:49]} 28. Rxg7+ {[%clk 0:00:27]}  Kxf6 {[%clk 0:00:49]} 29. Ree7 {[%clk 0:00:27]}  Ne5+ {[%clk 0:00:42]} 30. Kg2 {[%clk 0:00:23]}  a5 {[%clk 0:00:38]} 31. f3 {[%clk 0:00:21]}  Rc2+ {[%clk 0:00:37]} 32. Kh3 {[%clk 0:00:21]}  Nxf3 {[%clk 0:00:35]} 33. Ra7 {[%clk 0:00:20]}  Rh2# {[%clk 0:00:34]} 0-1


[Site "https://www.chess.com"]

[Event "Titled Tuesday Blitz February 14 Late 2023"]
[White "Stanisz, Patryk"]
[Black "Oliveira, Tiago Batista"]
[WhiteFideId "1123106"]
[BlackFideId "2108291"]
[WhiteElo "2161"]
[BlackElo "1991"]
[Result "1-0"]
[Round "08"]
[TimeControl "180+2"]
[Date "2023.02.14"]
[WhiteClock "0:00:07"]
[BlackClock "0:00:03"]

1. d4 {[%clk 0:03:00]}  Nf6 {[%clk 0:02:54]} 2. c4 {[%clk 0:03:00]}  g6 {[%clk 0:02:44]} 3. Nc3 {[%clk 0:03:00]}  d5 {[%clk 0:02:32]} 4. Nf3 {[%clk 0:02:59]}  Bg7 {[%clk 0:02:30]} 5. Qb3 {[%clk 0:02:59]}  dxc4 {[%clk 0:02:24]} 6. Qxc4 {[%clk 0:03:00]}  O-O {[%clk 0:02:22]} 7. Bf4 {[%clk 0:03:00]}  Na6 {[%clk 0:02:18]} 8. e4 {[%clk 0:03:01]}  c5 {[%clk 0:02:15]} 9. dxc5 {[%clk 0:03:02]}  Be6 {[%clk 0:02:15]} 10. Qb5 {[%clk 0:03:00]}  Qc8 {[%clk 0:02:04]} 11. c6 {[%clk 0:03:00]}  Nc7 {[%clk 0:00:57]} 12. cxb7 {[%clk 0:02:32]}  Nxb5 {[%clk 0:00:56]} 13. bxc8=Q {[%clk 0:02:31]}  Raxc8 {[%clk 0:00:49]} 14. Bxb5 {[%clk 0:02:31]}  Nh5 {[%clk 0:00:40]} 15. Bd2 {[%clk 0:02:27]}  Rb8 {[%clk 0:00:35]} 16. a4 {[%clk 0:02:17]}  a6 {[%clk 0:00:29]} 17. Bxa6 {[%clk 0:02:16]}  Rxb2 {[%clk 0:00:27]} 18. Nd5 {[%clk 0:01:08]}  Bxd5 {[%clk 0:00:21]} 19. exd5 {[%clk 0:01:08]}  Rb6 {[%clk 0:00:22]} 20. Rc1 {[%clk 0:00:39]}  Rxa6 {[%clk 0:00:21]} 21. a5 {[%clk 0:00:39]}  Nf6 {[%clk 0:00:11]} 22. Rc5 {[%clk 0:00:37]}  Rd8 {[%clk 0:00:11]} 23. O-O {[%clk 0:00:33]}  Ne4 {[%clk 0:00:11]} 24. Rc2 {[%clk 0:00:17]}  Nxd2 {[%clk 0:00:11]} 25. Rxd2 {[%clk 0:00:18]}  Rxa5 {[%clk 0:00:12]} 26. Rfd1 {[%clk 0:00:16]}  Bh6 {[%clk 0:00:10]} 27. Rd3 {[%clk 0:00:16]}  Bf4 {[%clk 0:00:07]} 28. g3 {[%clk 0:00:16]}  Bd6 {[%clk 0:00:07]} 29. Kg2 {[%clk 0:00:17]}  Rda8 {[%clk 0:00:06]} 30. Nd4 {[%clk 0:00:17]}  Ra2 {[%clk 0:00:05]} 31. R3d2 {[%clk 0:00:12]}  Rxd2 {[%clk 0:00:05]} 32. Rxd2 {[%clk 0:00:13]}  Ra4 {[%clk 0:00:04]} 33. Nb5 {[%clk 0:00:12]}  Bc5 {[%clk 0:00:03]} 34. h4 {[%clk 0:00:10]}  h6 {[%clk 0:00:03]} 35. Nc7 {[%clk 0:00:08]}  Bd6 {[%clk 0:00:03]} 36. Nb5 {[%clk 0:00:08]}  Bc5 {[%clk 0:00:03]} 37. f3 {[%clk 0:00:06]}  g5 {[%clk 0:00:03]} 38. hxg5 {[%clk 0:00:06]}  hxg5 {[%clk 0:00:03]} 39. Re2 {[%clk 0:00:05]}  Kg7 {[%clk 0:00:03]} 40. Nc3 {[%clk 0:00:05]}  Rd4 {[%clk 0:00:03]} 41. Re5 {[%clk 0:00:04]}  Rd2+ {[%clk 0:00:03]} 42. Kh3 {[%clk 0:00:04]}  f6 {[%clk 0:00:04]} 43. Re2 {[%clk 0:00:04]}  Rxe2 {[%clk 0:00:03]} 44. Nxe2 {[%clk 0:00:04]}  Kg6 {[%clk 0:00:04]} 45. Kg4 {[%clk 0:00:05]}  f5+ {[%clk 0:00:04]} 46. Kh3 {[%clk 0:00:06]}  Kf6 {[%clk 0:00:04]} 47. f4 {[%clk 0:00:05]}  g4+ {[%clk 0:00:04]} 48. Kg2 {[%clk 0:00:05]}  e6 {[%clk 0:00:04]} 49. dxe6 {[%clk 0:00:05]}  Kxe6 {[%clk 0:00:03]} 50. Nc3 {[%clk 0:00:04]}  Bd4 {[%clk 0:00:03]} 51. Nb5 {[%clk 0:00:05]}  Bf6 {[%clk 0:00:03]} 52. Nc7+ {[%clk 0:00:05]}  Kd6 {[%clk 0:00:03]} 53. Ne8+ {[%clk 0:00:04]}  Ke7 {[%clk 0:00:03]} 54. Nc7 {[%clk 0:00:04]}  Kd6 {[%clk 0:00:03]} 55. Nb5+ {[%clk 0:00:04]}  Kc5 {[%clk 0:00:03]} 56. Na3 {[%clk 0:00:05]}  Kb4 {[%clk 0:00:04]} 57. Nc2+ {[%clk 0:00:05]}  Kc3 {[%clk 0:00:04]} 58. Ne3 {[%clk 0:00:06]}  Kd2 {[%clk 0:00:03]} 59. Nxf5 {[%clk 0:00:07]}  Ke2 {[%clk 0:00:03]} 60. Nh6 {[%clk 0:00:07]} 1-0


[Site "https://www.chess.com"]

[Event "Titled Tuesday Blitz February 14 Late 2023"]
[White "Kujawski, Adam"]
[Black "Wang, Alexander J"]
[WhiteFideId "1100920"]
[BlackFideId "30955270"]
[WhiteElo "2173"]
[BlackElo "1815"]
[Result "1-0"]
[Round "08"]
[TimeControl "180+2"]
[Date "2023.02.14"]
[WhiteClock "0:00:30"]
[BlackClock "0:00:06"]

1. e4 {[%clk 0:03:00]}  c5 {[%clk 0:02:59]} 2. Nf3 {[%clk 0:03:01]}  d6 {[%clk 0:02:59]} 3. d4 {[%clk 0:03:01]}  cxd4 {[%clk 0:02:58]} 4. Nxd4 {[%clk 0:03:02]}  Nf6 {[%clk 0:02:59]} 5. Nc3 {[%clk 0:03:03]}  g6 {[%clk 0:02:59]} 6. Be3 {[%clk 0:03:02]}  Bg7 {[%clk 0:03:00]} 7. f3 {[%clk 0:03:03]}  O-O {[%clk 0:03:00]} 8. Qd2 {[%clk 0:03:03]}  Nc6 {[%clk 0:03:00]} 9. O-O-O {[%clk 0:03:04]}  d5 {[%clk 0:03:00]} 10. exd5 {[%clk 0:03:04]}  Nxd5 {[%clk 0:03:01]} 11. Nxc6 {[%clk 0:03:04]}  bxc6 {[%clk 0:03:01]} 12. Bd4 {[%clk 0:03:04]}  e5 {[%clk 0:02:56]} 13. Bc5 {[%clk 0:03:04]}  Re8 {[%clk 0:02:54]} 14. Nxd5 {[%clk 0:03:01]}  cxd5 {[%clk 0:02:53]} 15. Qxd5 {[%clk 0:03:01]}  Qxd5 {[%clk 0:02:47]} 16. Rxd5 {[%clk 0:03:01]}  Be6 {[%clk 0:02:47]} 17. Rd6 {[%clk 0:02:54]}  Bf8 {[%clk 0:02:39]} 18. Rc6 {[%clk 0:02:52]}  Bh6+ {[%clk 0:02:17]} 19. Kb1 {[%clk 0:02:46]}  Red8 {[%clk 0:02:12]} 20. Bd3 {[%clk 0:02:42]}  Bd5 {[%clk 0:02:02]} 21. Rc7 {[%clk 0:02:40]}  a5 {[%clk 0:01:40]} 22. Re1 {[%clk 0:02:35]}  Bg7 {[%clk 0:01:31]} 23. Be4 {[%clk 0:02:26]}  Bxe4 {[%clk 0:01:27]} 24. fxe4 {[%clk 0:02:26]}  f5 {[%clk 0:01:25]} 25. a4 {[%clk 0:01:44]}  Rab8 {[%clk 0:01:15]} 26. Be3 {[%clk 0:01:26]}  fxe4 {[%clk 0:01:02]} 27. Rf1 {[%clk 0:01:18]}  Rf8 {[%clk 0:00:55]} 28. Rd1 {[%clk 0:01:07]}  Rfd8 {[%clk 0:00:28]} 29. Rxd8+ {[%clk 0:01:04]}  Rxd8 {[%clk 0:00:29]} 30. Kc1 {[%clk 0:01:03]}  Rb8 {[%clk 0:00:26]} 31. b3 {[%clk 0:00:57]}  Rf8 {[%clk 0:00:25]} 32. Rc5 {[%clk 0:00:49]}  Rf1+ {[%clk 0:00:23]} 33. Kd2 {[%clk 0:00:49]}  h6 {[%clk 0:00:19]} 34. Rxa5 {[%clk 0:00:49]}  Rh1 {[%clk 0:00:17]} 35. Ra8+ {[%clk 0:00:45]}  Kh7 {[%clk 0:00:17]} 36. Ke2 {[%clk 0:00:42]}  Rxh2 {[%clk 0:00:17]} 37. Kf2 {[%clk 0:00:40]}  Bf6 {[%clk 0:00:16]} 38. a5 {[%clk 0:00:38]}  Rh1 {[%clk 0:00:15]} 39. a6 {[%clk 0:00:37]}  Bh4+ {[%clk 0:00:15]} 40. g3 {[%clk 0:00:35]}  Rh2+ {[%clk 0:00:11]} 41. Kg1 {[%clk 0:00:33]}  Bxg3 {[%clk 0:00:12]} 42. Ra7+ {[%clk 0:00:32]}  Kg8 {[%clk 0:00:10]} 43. Rb7 {[%clk 0:00:31]}  Rxc2 {[%clk 0:00:06]} 44. a7 {[%clk 0:00:30]}  Ra2 {[%clk 0:00:06]} 45. Rb8+ {[%clk 0:00:30]} 1-0


[Site "https://www.chess.com"]

[Event "Titled Tuesday Blitz February 14 Late 2023"]
[White "Ardila, Oscar Humberto"]
[Black "Tarnowska, Aleksandra"]
[WhiteFideId "4404742"]
[BlackFideId "1180967"]
[WhiteElo "1982"]
[BlackElo "1835"]
[Result "0-1"]
[Round "08"]
[TimeControl "180+2"]
[Date "2023.02.14"]
[WhiteClock "0:01:16"]
[BlackClock "0:00:28"]

1. d4 {[%clk 0:03:00]}  d5 {[%clk 0:03:00]} 2. Nf3 {[%clk 0:03:00]}  Nf6 {[%clk 0:03:00]} 3. g3 {[%clk 0:03:00]}  e6 {[%clk 0:02:58]} 4. Bg2 {[%clk 0:03:01]}  Be7 {[%clk 0:02:54]} 5. O-O {[%clk 0:03:01]}  O-O {[%clk 0:02:55]} 6. Nbd2 {[%clk 0:03:01]}  b6 {[%clk 0:02:55]} 7. b3 {[%clk 0:03:01]}  Bb7 {[%clk 0:02:56]} 8. Bb2 {[%clk 0:03:02]}  Nbd7 {[%clk 0:02:57]} 9. Rc1 {[%clk 0:03:00]}  Rc8 {[%clk 0:02:57]} 10. Ne5 {[%clk 0:02:59]}  c5 {[%clk 0:02:56]} 11. f4 {[%clk 0:02:48]}  cxd4 {[%clk 0:02:50]} 12. Bxd4 {[%clk 0:02:48]}  Bc5 {[%clk 0:02:43]} 13. e3 {[%clk 0:02:47]}  Ba3 {[%clk 0:02:37]} 14. Rb1 {[%clk 0:02:46]}  Bc5 {[%clk 0:02:29]} 15. h3 {[%clk 0:02:18]}  Ba6 {[%clk 0:02:23]} 16. Rf2 {[%clk 0:02:16]}  Qc7 {[%clk 0:02:18]} 17. Nf1 {[%clk 0:02:07]}  Bxd4 {[%clk 0:01:54]} 18. exd4 {[%clk 0:02:07]}  Qc3 {[%clk 0:01:44]} 19. Kh2 {[%clk 0:01:41]}  Nxe5 {[%clk 0:01:17]} 20. dxe5 {[%clk 0:01:38]}  Ne4 {[%clk 0:01:14]} 21. Bxe4 {[%clk 0:01:36]}  dxe4 {[%clk 0:01:15]} 22. Qe1 {[%clk 0:01:23]}  Rfd8 {[%clk 0:00:42]} 23. Ne3 {[%clk 0:01:21]}  h6 {[%clk 0:00:37]} 24. Rd1 {[%clk 0:01:16]}  Rxd1 {[%clk 0:00:28]} 25. Nxd1 {[%clk 0:01:16]}  Qxe1 {[%clk 0:00:28]} 0-1


[Site "https://www.chess.com"]